bitfinex/quotes_ETHUSD_20251124
["timestamp","ask_amount","ask_price","bid_price","bid_amount"]
[1764002360950,0.4634,2858.2,2856.7,0.4638]
[1764002361473,0.226,2858.4,2856.7,0.4638]
[1764002361474,0.002,2858.4,2856.7,0.4638]
[1764002361650,0.407504,2858.4,2856.7,3.96432284]
[1764002361849,0.407504,2858.4,2856.8,0.39643228]
[1764002362053,0.4634,2858.3,2856.8,0.86023228]
[1764002362255,0.4634,2858.3,2856.9,0.49880297]
[1764002362470,0.407504,2858.4,2858.2,0.6593]
[1764002362471,0.002,2858.4,2858.2,0.6593]
[1764002362661,0.002,2858.4,2858.3,0.4781]
[1764002362858,0.002,2858.4,2858.2,0.1812]
[1764002363389,0.002,2858.4,2858.3,0.4781]
[1764002363682,0.002,2858.4,2858.3,0.9419]
[1764002364088,0.002,2858.4,2858.3,0.4781]
[1764002364468,0.002,2858.4,2858.3,0.9419]
[1764002364668,0.0012,2858.4,2858.3,0.9419]
[1764002369412,0.0012,2858.4,2858.3,1.40407282]
[1764002369597,0.0012,2858.4,2858.3,0.9419]
[1764002371698,0.0012,2858.4,2857.8,3.49918133]
[1764002371699,0.0012,2858.4,2858.1,0.1821]
[1764002372077,0.0012,2858.4,2858.1,0.6459]
[1764002372374,0.0012,2858.4,2858.3,0.4781]
[1764002372774,0.0012,2858.4,2858.3,0.9419]
[1764002375519,0.0012,2858.4,2857.8,0.6459]
[1764002375691,0.7425,2858.4,2857.4,0.8699]
[1764002377093,0.7425,2858.4,2857.4,0.4061]
[1764002377291,0.7425,2858.4,2857.5,0.4638]
[1764002377601,0.59445737,2858.3,2857.4,0.4061]
[1764002378002,0.4634,2858.2,2857.4,0.4061]
[1764002379222,0.0012,2858.4,2857.4,0.8699]
[1764002379418,0.0012,2858.4,2857.5,2.1459]
[1764002379582,0.0012,2858.4,2857.6,0.65154792]
[1764002379788,0.0012,2858.4,2858.3,0.4781]
[1764002380214,0.0012,2858.4,2858.3,0.9419]
[1764002380414,0.0012,2858.4,2858.3,0.4781]
[1764002381186,0.0012,2858.4,2857.9,0.4638]
[1764002381394,0.0012,2858.4,2857.7,0.224]
[1764002381624,0.0012,2858.4,2857.7,0.6878]
[1764002381939,0.0012,2858.4,2857.8,0.4638]
[1764002382495,0.0012,2858.4,2858.3,0.4781]
[1764002382937,0.0012,2858.4,2858.3,0.9419]
[1764002383722,0.0012,2858.4,2857.7,0.224]
[1764002383723,0.0012,2858.4,2857.8,0.4638]
[1764002384910,0.0012,2858.4,2857.9,0.41871145]
[1764002385107,0.0012,2858.4,2857.8,0.4638]
[1764002385946,0.0012,2858.4,2857.0,0.1812]
[1764002385947,0.4718,2857.9,2857.0,0.1812]
[1764002386133,0.0028,2857.8,2857.0,0.1812]
[1764002386338,0.194,2857.9,2857.1,0.4638]
[1764002387045,0.0012,2858.4,2857.1,0.4638]
[1764002387221,0.3280812,2858.4,2857.2,0.76452953]
[1764002387611,0.0012,2858.4,2857.3,0.4781]
[1764002387806,0.0012,2858.4,2857.3,3.97786924]
[1764002388036,0.0012,2858.4,2857.3,0.4781]
[1764002388345,0.0012,2858.4,2857.4,0.4781]
[1764002388524,0.0004,2858.4,2857.4,0.4781]
[1764002388719,0.0004,2858.4,2857.4,0.4791]
[1764002388924,0.4871,2858.4,2857.4,0.4791]
[1764002389148,0.32728913,2858.3,2857.4,0.4791]
[1764002389648,0.81678913,2858.2,2857.4,0.001]
[1764002389852,0.4327,2857.5,2857.4,0.001]
[1764002390449,0.4895,2858.0,2857.4,0.4872]
[1764002390644,0.4895,2858.3,2857.4,0.9586]
[1764002390833,0.32740835,2858.2,2857.4,0.9586]
[1764002391147,0.32740835,2858.1,2857.4,0.9586]
[1764002391356,0.4895,2858.3,2857.4,0.9586]
[1764002391357,0.32740835,2858.2,2857.4,0.9586]
[1764002391526,0.32740835,2858.1,2857.4,0.9586]
[1764002391709,0.32740835,2858.2,2857.4,0.9586]
[1764002391911,0.32740835,2858.2,2857.4,0.4872]
[1764002392118,0.0004,2858.4,2857.5,0.4714]
[1764002392546,0.32780835,2858.4,2857.5,0.4714]
[1764002392857,0.0004,2858.4,2857.6,0.0349944]
[1764002393347,0.0004,2858.4,2857.7,0.4714]
[1764002394054,0.4899,2858.4,2857.5,0.4093]
[1764002394352,0.0004,2858.4,2857.6,0.5063944]
[1764002394525,0.0004,2858.4,2857.7,0.44152445]
[1764002394923,0.0004,2858.4,2857.8,0.4714]
[1764002396413,0.0004,2858.4,2858.3,0.4862]
[1764002398953,0.0004,2858.4,2858.3,0.9576]
[1764002400244,0.0004,2858.4,2858.3,4.45618307]
[1764002400443,0.0004,2858.4,2858.3,34.32080559]
[1764002400644,0.002,2859.0,2858.8,3.573125]
[1764002400868,0.002,2859.0,2858.9,0.4862]
[1764002401030,0.002,2859.0,2858.9,0.7102]
[1764002401360,0.002,2859.0,2858.3,0.44561831]
[1764002401361,0.7278,2859.0,2858.3,0.44561831]
[1764002401573,0.7278,2859.0,2858.1,0.224]
[1764002401574,0.1808,2858.9,2858.1,0.224]
[1764002401871,0.7278,2859.0,2858.1,0.6954]
[1764002401872,0.002,2859.0,2858.1,0.6954]
[1764002402165,0.002,2859.0,2858.1,7.69297347]
[1764002402319,0.002,2859.0,2858.2,0.4714]
[1764002402519,0.1808,2858.9,2858.3,0.41941456]
[1764002402742,0.1808,2858.9,2858.2,0.4714]
[1764002402743,0.1808,2858.9,2858.2,0.224]
[1764002403532,0.4895,2858.8,2857.7,0.4714]
[1764002403861,0.4895,2858.8,2858.0,0.224]
[1764002404923,0.002,2859.0,2858.1,0.4714]
[1764002405124,0.002,2859.0,2858.2,0.03498705]
[1764002405328,0.002,2859.0,2858.1,0.4714]
[1764002405627,0.002,2859.0,2858.2,0.41943418]
[1764002405932,0.002,2859.0,2858.9,0.4862]
[1764002406360,0.002,2859.0,2858.9,0.9576]
[1764002406859,0.002,2859.0,2858.9,4.86095282]
[1764002407061,0.002,2859.0,2858.9,12.81658582]
[1764002407268,0.002,2859.0,2858.9,13.98512751]
[1764002407464,0.002,2859.0,2858.9,8.64613051]
[1764002407962,0.002,2859.0,2858.9,11.87632951]
[1764002408181,0.002,2859.0,2858.9,11.38163451]
[1764002408477,0.002,2859.0,2858.9,6.51480751]
[1764002408638,0.002,2859.0,2858.9,8.79623451]
[1764002408965,0.002,2859.0,2858.9,2.83545469]
[1764002409135,0.002,2859.0,2858.9,4.67944882]
[1764002409475,0.002,2859.0,2858.9,18.68216382]
[1764002409664,0.002,2859.0,2858.9,14.79640982]
[1764002409876,0.002,2859.0,2858.9,14.43122482]
[1764002410069,0.002,2859.2,2859.0,20.661822]
[1764002410270,0.002,2859.2,2859.1,21.328826]
[1764002410567,0.002,2859.2,2859.1,3.75021]
[1764002410996,0.002,2859.2,2859.1,7.24781414]
[1764002411587,0.002,2859.2,2859.1,10.42202225]
[1764002411774,0.002,2859.2,2859.1,12.01568814]
[1764002411947,0.002,2859.5,2859.4,1.13109811]
[1764002412153,0.002,2859.5,2859.4,4.02944411]
[1764002412348,0.002,2859.5,2859.4,6.96698511]
[1764002412693,0.0012,2859.5,2859.4,5.01753551]
[1764002412855,0.0012,2859.5,2859.4,2.28280251]
[1764002413055,0.0012,2859.5,2859.4,5.08334118]
[1764002413361,0.0012,2859.5,2859.4,21.28807818]
[1764002413580,0.0012,2859.5,2859.4,20.92156018]
[1764002414289,0.0012,2859.5,2859.4,16.03451018]
[1764002414590,0.0012,2859.5,2859.4,12.08617718]
[1764002414818,0.0012,2859.5,2859.4,13.64453468]
[1764002415255,0.0012,2859.5,2859.4,14.37012879]
[1764002415454,0.0012,2859.5,2859.4,25.82676179]
[1764002415696,0.0012,2859.5,2859.4,25.31824979]
[1764002415875,0.0004,2860.9,2859.4,25.31824979]
[1764002415876,0.0004,2860.9,2859.7,1.13109811]
[1764002416080,0.0004,2860.9,2860.8,0.6715]
[1764002416295,0.0004,2860.9,2860.8,0.8945]
[1764002416492,0.0004,2860.9,2860.8,1.3659]
[1764002417266,0.0004,2860.9,2860.8,0.223]
[1764002417458,0.0004,2860.9,2860.8,0.7092]
[1764002417654,0.0004,2860.9,2860.8,4.64373336]
[1764002417859,0.0004,2860.9,2860.8,4.67336503]
[1764002418274,0.0004,2860.9,2860.8,26.24269903]
[1764002418480,0.0004,2860.9,2860.8,21.94968003]
[1764002418690,0.0004,2860.9,2860.8,5.07886903]
[1764002418915,0.0004,2860.9,2860.8,10.51048887]
[1764002419321,0.0004,2860.9,2860.8,29.88954687]
[1764002419482,0.0004,2860.9,2860.8,15.83377587]
[1764002420382,0.0004,2860.9,2860.8,11.69395087]
[1764002420579,0.0004,2860.9,2860.8,9.88097987]
[1764002420784,0.0004,2860.9,2860.8,9.88374056]
[1764002421421,0.0004,2860.9,2860.8,12.50015256]
[1764002422418,0.0004,2860.9,2860.8,5.95761056]
[1764002422717,0.0004,2860.9,2860.8,12.48015256]
[1764002423225,0.0004,2860.9,2860.8,0.87598084]
[1764002423421,0.0004,2860.9,2860.8,0.223]
[1764002423920,0.0004,2860.9,2860.8,0.7044]
[1764002424123,0.0004,2860.9,2860.8,0.223]
[1764002424627,0.9071,2860.9,2860.0,0.1853]
[1764002424794,0.0048,2860.7,2860.0,0.26888412]
[1764002425127,0.5027,2860.7,2860.1,0.223]
[1764002425623,0.209,2860.2,2859.7,0.1994]
[1764002425927,0.2046,2859.8,2859.1,3.68290414]
[1764002426127,0.1901,2859.7,2859.4,0.223]
[1764002426535,0.1978,2860.0,2859.4,0.223]
[1764002426902,0.6957,2860.0,2859.4,0.223]
[1764002427236,0.1968,2859.5,2859.4,0.223]
[1764002427389,0.1978,2860.0,2859.4,0.223]
[1764002427594,0.1978,2860.0,2859.5,0.37203048]
[1764002428131,0.4979,2859.9,2859.4,0.223]
[1764002429225,0.1968,2859.5,2858.7,0.4792]
[1764002429412,0.4979,2859.9,2858.1,0.4989]
[1764002429726,0.1978,2860.0,2858.9,3.596663]
[1764002430036,0.4979,2860.3,2859.2,0.405504]
[1764002430207,0.4979,2860.3,2859.4,3.4929]
[1764002430728,0.1982,2860.9,2859.5,0.884704]
[1764002430927,0.4979,2860.7,2859.6,3.135795]
[1764002431131,0.4979,2860.7,2859.7,0.6250499]
[1764002431442,0.4979,2860.7,2859.7,0.223]
[1764002431598,0.4979,2860.7,2859.3,3.69674082]
[1764002431599,0.3946,2859.8,2859.4,7.0]
[1764002431796,0.3946,2859.8,2859.5,0.223]
[1764002432843,0.8895,2859.8,2859.5,0.223]
[1764002433130,0.1978,2860.0,2859.5,0.223]
[1764002433333,0.1978,2860.0,2859.5,0.94476988]
[1764002433541,0.6957,2860.0,2859.5,0.94476988]
[1764002433902,0.6957,2860.0,2859.5,4.44187922]
[1764002433903,0.1978,2860.0,2859.5,4.44187922]
[1764002434206,0.1978,2860.2,2859.5,4.92107922]
[1764002434540,0.6957,2860.2,2859.5,0.94476988]
[1764002434705,0.6957,2860.2,2859.5,0.223]
[1764002435039,0.1978,2860.2,2859.5,3.72010807]
[1764002435204,0.1978,2860.2,2859.5,0.223]
[1764002435405,0.1968,2859.6,2859.0,0.405504]
[1764002435647,0.1968,2859.6,2859.1,0.223]
[1764002436139,0.6909,2859.6,2858.7,0.4792]
[1764002436436,0.1941,2859.1,2858.8,0.223]
[1764002436640,0.1941,2859.1,2858.8,0.59521872]
[1764002436828,0.2028,2858.9,2858.8,0.223]
[1764002437146,0.2028,2858.9,2858.6,0.001]
[1764002437306,0.1978,2858.9,2858.6,0.001]
[1764002437505,0.4901,2858.7,2858.6,0.001]
[1764002437946,0.6769,2858.7,2858.6,0.001]
[1764002438437,0.4901,2858.7,2858.6,0.001]
[1764002438635,0.1978,2858.9,2858.6,0.001]
[1764002438860,0.1868,2859.1,2858.6,0.001]
[1764002438861,0.1978,2859.1,2858.6,0.001]
[1764002439037,0.1978,2859.3,2858.6,0.88166033]
[1764002439209,0.1978,2859.3,2858.7,0.223]
[1764002439411,0.1978,2860.2,2858.8,7.541526]
[1764002439648,0.4979,2859.9,2858.9,3.5328273]
[1764002439850,0.4979,2859.9,2859.0,0.70307419]
[1764002440049,0.4979,2859.9,2859.1,0.25797604]
[1764002440348,0.002,2859.6,2859.1,0.223]
[1764002440655,0.002,2859.6,2859.1,0.45737604]
[1764002441069,0.002,2859.6,2859.1,0.9016]
[1764002441568,0.002,2859.6,2859.2,3.97668181]
[1764002441732,0.002,2859.6,2859.5,0.886904]
[1764002441934,0.002,2859.6,2859.5,17.586719]
[1764002442133,0.002,2859.6,2859.5,16.65142]
[1764002442334,0.002,2859.6,2859.5,12.774448]
[1764002442933,0.002,2859.6,2859.5,1.589104]
[1764002443144,0.002,2859.6,2859.5,13.69137998]
[1764002443350,0.002,2859.6,2859.5,7.88707698]
[1764002443558,0.002,2859.6,2859.5,0.90765098]
[1764002443745,0.002,2859.6,2859.5,4.40476586]
[1764002443949,0.002,2859.6,2859.5,4.88396586]
[1764002444839,0.002,2859.6,2859.5,4.40476586]
[1764002445166,0.002,2859.6,2859.5,0.90765098]
[1764002445381,0.002,2859.6,2859.5,0.42625098]
[1764002445576,0.002,2859.6,2859.3,0.405504]
[1764002445577,0.002,2859.6,2859.2,0.4792]
[1764002445732,0.002,2859.6,2859.2,3.97662245]
[1764002445938,0.002,2859.6,2859.3,0.25797359]
[1764002446180,0.002,2859.6,2859.3,0.223]
[1764002446344,0.002,2859.6,2859.3,0.7022]
[1764002446751,0.002,2859.6,2859.5,0.4814]
[1764002447671,0.002,2859.6,2859.5,1.00117114]
[1764002447871,0.002,2859.6,2859.5,10.75925388]
[1764002448169,0.002,2859.6,2859.5,9.97771584]
[1764002448376,0.002,2859.6,2859.5,9.49291584]
[1764002448980,0.002,2859.6,2859.5,11.69858484]
[1764002449194,0.002,2859.6,2859.5,12.18338484]
[1764002449884,0.002,2859.6,2859.5,16.52933684]
[1764002450179,0.002,2859.6,2859.5,15.63903284]
[1764002450386,0.002,2859.6,2859.5,7.75854484]
[1764002450583,0.002,2859.6,2859.5,6.31059688]
[1764002450753,0.002,2859.6,2859.5,6.82556802]
[1764002450949,0.002,2859.6,2859.5,4.68151488]
[1764002451156,0.002,2859.6,2859.5,16.66949902]
[1764002451385,0.002,2859.6,2859.5,17.04003188]
[1764002451686,0.002,2859.6,2859.5,20.20671027]
[1764002451851,0.002,2859.6,2859.5,13.32350227]
[1764002452046,0.002,2859.6,2859.5,13.38550227]
[1764002452251,0.002,2859.6,2859.5,7.65585139]
[1764002452563,0.002,2859.6,2859.5,0.223]
[1764002452952,0.213,2859.6,2859.5,0.223]
[1764002453691,0.002,2859.6,2859.5,0.223]
[1764002453889,0.002,2859.6,2859.5,4.12561888]
[1764002454249,0.002,2859.6,2859.5,5.06301888]
[1764002454584,0.002,2859.6,2859.5,4.98164326]
[1764002454771,0.002,2859.6,2859.5,4.12561888]
[1764002455985,0.002,2859.6,2859.5,4.58301888]
[1764002456372,0.002,2859.6,2859.5,12.16138388]
[1764002456566,0.002,2859.6,2859.5,18.42099931]
[1764002457011,0.002,2859.6,2859.5,18.14805731]
[1764002457217,0.002,2859.6,2859.5,19.31258617]
[1764002457394,0.002,2859.6,2859.5,23.17093017]
[1764002457983,0.002,2859.6,2859.5,13.69207974]
[1764002458367,0.002,2859.6,2859.5,16.39317074]
[1764002459101,0.002,2859.6,2859.5,8.73171274]
[1764002459267,0.002,2859.6,2859.5,6.97368788]
[1764002459472,0.002,2859.6,2859.5,15.00405388]
[1764002459811,0.0012,2859.6,2859.5,12.27105388]
[1764002459971,0.0012,2859.6,2859.5,11.41504788]
[1764002460171,0.0012,2859.6,2859.5,11.19204788]
[1764002460402,0.0012,2859.6,2859.5,11.87244788]
[1764002460574,0.0012,2859.6,2859.5,13.40941618]
[1764002460908,0.6829,2859.6,2859.5,7.289429]
[1764002461095,0.6829,2859.6,2859.5,0.001]
[1764002461433,0.72679411,2859.6,2858.6,0.001]
[1764002461625,0.1948,2858.7,2858.6,0.001]
[1764002461976,0.6657,2858.7,2858.5,0.001]
[1764002462177,0.211,2858.6,2858.5,0.001]
[1764002462426,0.6815,2858.6,2858.5,0.001]
[1764002463662,0.211,2858.6,2858.5,0.001]
[1764002463823,0.6815,2858.6,2858.5,0.001]
[1764002464412,0.211,2858.6,2858.5,0.001]
[1764002464912,0.6815,2858.6,2858.5,0.001]
[1764002466668,0.211,2858.6,2858.5,0.001]
[1764002466823,0.1926,2858.7,2858.5,0.001]
[1764002467023,0.1926,2859.1,2858.5,0.001]
[1764002468206,0.1926,2859.1,2858.5,6.99767656]
[1764002468414,0.0012,2859.6,2858.6,1.60767166]
[1764002468836,0.0012,2859.6,2859.0,0.405504]
[1764002469036,0.0012,2859.6,2859.2,0.405504]
[1764002469618,0.0012,2859.6,2859.2,0.885504]
[1764002470460,0.0012,2859.6,2859.5,0.4574]
[1764002470667,0.0012,2859.6,2859.5,0.7932119]
[1764002470825,0.2702,2859.6,2859.3,0.223]
[1764002472177,0.0012,2859.6,2859.4,0.03497237]
[1764002472343,0.0012,2859.6,2859.4,9.42128837]
[1764002472549,0.0012,2859.6,2859.4,3.49718812]
[1764002472955,0.0012,2859.6,2859.3,0.223]
[1764002473162,0.0012,2859.6,2859.3,4.14034462]
[1764002473324,0.0012,2859.6,2859.4,3.145742]
[1764002473672,0.0012,2859.6,2859.5,6.86543]
[1764002473819,0.0012,2859.6,2859.5,0.9374]
[1764002474018,0.0012,2859.6,2859.5,3.228733]
[1764002474278,0.0012,2859.6,2859.5,4.31887395]
[1764002474559,0.0012,2859.6,2859.5,8.22149283]
[1764002474727,0.0012,2859.6,2859.5,13.44431483]
[1764002475126,0.0012,2859.6,2859.5,5.98807995]
[1764002475333,0.0012,2859.6,2859.5,1.31314095]
[1764002475566,0.0012,2859.6,2859.5,0.223]
[1764002475764,0.0012,2859.6,2859.4,3.49721945]
[1764002475956,0.0012,2859.6,2859.5,0.223]
[1764002476450,0.0012,2859.6,2859.5,4.340904]
[1764002476650,0.0012,2859.6,2859.5,7.83801888]
[1764002476960,0.0012,2859.6,2859.5,9.30429089]
[1764002477172,0.0012,2859.6,2859.5,10.029885]
[1764002477367,0.0012,2859.6,2859.5,25.767552]
[1764002477751,0.0012,2859.6,2859.5,24.128825]
[1764002478504,0.0012,2859.6,2859.5,11.739172]
[1764002478707,0.0012,2859.6,2859.5,6.484141]
[1764002478912,0.0012,2859.6,2859.5,3.72011488]
[1764002479119,0.2702,2859.6,2859.0,0.48]
[1764002479285,0.2702,2859.6,2859.1,0.223]
[1764002479286,0.739,2859.6,2859.1,0.223]
[1764002480022,0.0012,2859.6,2859.2,0.03497481]
[1764002480311,0.0012,2859.6,2859.3,0.405504]
[1764002480815,0.0012,2859.6,2859.4,3.49723718]
[1764002481016,0.0012,2859.6,2859.5,0.223]
[1764002481181,0.0012,2859.6,2859.5,0.73927114]
[1764002481514,0.0012,2859.6,2859.5,9.70846214]
[1764002481716,0.0012,2859.6,2859.5,9.32803565]
[1764002482576,0.0012,2859.6,2859.5,15.15555665]
[1764002482793,0.0012,2859.6,2859.5,16.97951853]
[1764002483603,0.0004,2859.6,2859.5,22.30067753]
[1764002483827,0.0004,2859.6,2859.5,29.98039707]
[1764002484617,0.0004,2859.6,2859.5,34.96060607]
[1764002484827,0.0004,2859.6,2859.5,25.80231464]
[1764002484984,0.0004,2859.6,2859.5,19.07718307]
[1764002485508,0.0004,2859.6,2859.5,36.71767907]
[1764002485671,0.0004,2859.6,2859.5,36.47326707]
[1764002485872,0.1982,2860.9,2859.5,36.47326707]
[1764002485873,0.0004,2860.9,2860.0,1.13109811]
[1764002486114,0.0004,2860.9,2860.8,0.4813]
[1764002486285,0.0004,2860.9,2860.8,0.7043]
[1764002486483,0.0004,2860.9,2860.8,1.109804]
[1764002486686,0.0004,2860.9,2860.8,3.35005]
[1764002487107,0.0004,2860.9,2860.8,2.86875]
[1764002487407,0.0004,2860.9,2860.8,7.6248685]
[1764002487617,0.2186,2860.9,2860.8,0.223]
[1764002488409,0.0004,2860.9,2860.8,0.223]
[1764002489209,0.0004,2860.9,2860.8,3.71852572]
[1764002489607,0.0004,2860.9,2860.8,8.79952272]
[1764002489772,0.0004,2860.9,2860.8,5.84144272]
[1764002490104,0.6263,2860.9,2860.8,1.15670811]
[1764002490292,0.6263,2860.9,2860.8,0.223]
[1764002490609,0.0004,2860.9,2860.4,0.405504]
[1764002490812,0.4585,2860.8,2860.5,0.223]
[1764002491177,0.2806,2860.6,2860.5,0.223]
[1764002492206,0.2806,2860.6,2860.0,3.49638305]
[1764002492412,0.2806,2860.6,2860.1,0.223]
[1764002492413,0.4568,2860.6,2860.1,0.223]
[1764002492608,0.4568,2860.6,2860.2,0.223]
[1764002492918,0.2824,2860.3,2860.2,0.223]
[1764002493823,0.7374,2860.3,2859.5,2.15039365]
[1764002494024,0.7374,2860.3,2859.6,0.223]
[1764002494431,0.7374,2860.3,2859.7,4.366417]
[1764002494593,0.7394,2860.3,2859.7,4.366417]
[1764002494793,0.7394,2860.3,2859.7,2.885067]
[1764002495528,0.7394,2860.3,2859.7,2.02694]
[1764002495728,0.7394,2860.3,2859.7,0.92441698]
[1764002496027,0.2844,2860.3,2859.8,6.99349604]
[1764002497004,0.7394,2860.3,2859.7,4.42128062]
[1764002497223,0.192,2859.8,2859.3,3.49730259]
[1764002497423,0.192,2859.8,2859.4,0.223]
[1764002497659,0.4585,2859.7,2859.4,0.223]
[1764002497831,0.2854,2859.5,2859.4,0.223]
[1764002498866,0.192,2859.8,2859.4,0.223]
[1764002499066,0.192,2859.8,2859.5,0.03497114]
[1764002499362,0.6505,2859.8,2859.4,0.223]
[1764002499718,0.192,2859.8,2859.4,0.223]
[1764002499915,0.4585,2859.7,2859.4,0.223]
[1764002500124,0.2854,2859.5,2859.4,0.223]
[1764002501224,0.192,2859.8,2859.4,0.223]
[1764002501426,0.192,2859.8,2859.4,3.72022654]
[1764002501647,0.192,2859.8,2859.4,0.223]
[1764002501848,0.2854,2859.5,2859.4,0.223]
[1764002502235,0.192,2859.8,2859.4,3.72023718]
[1764002502553,0.192,2859.8,2859.4,7.21747436]
[1764002502721,0.1968,2860.0,2859.5,0.51507114]
[1764002502925,0.1968,2860.0,2859.6,2.9927]
[1764002503157,0.1968,2860.0,2859.7,0.0349687]
[1764002503469,0.1968,2860.0,2859.8,0.223]
[1764002503822,0.7374,2859.9,2859.8,0.223]
[1764002504019,0.7374,2859.9,2859.4,0.223]
[1764002504245,0.2806,2859.5,2859.3,0.223]
[1764002504646,0.1968,2860.0,2859.3,0.223]
[1764002504647,0.4613,2859.4,2859.3,0.223]
[1764002505234,0.002,2860.3,2859.4,9.052703]
[1764002505444,0.002,2860.3,2859.3,1.90999411]
[1764002505670,0.4605,2860.3,2859.3,0.4813]
[1764002505868,0.4605,2860.3,2859.1,0.405504]
[1764002506056,0.4605,2860.3,2859.4,0.223]
[1764002506256,0.2806,2859.5,2859.4,0.223]
[1764002506476,0.4605,2860.3,2859.4,3.72023718]
[1764002506636,0.192,2859.8,2859.4,3.72023718]
[1764002506832,0.192,2859.8,2859.5,0.37202372]
[1764002507057,0.6505,2859.8,2859.4,0.223]
[1764002507259,0.6497,2859.8,2859.4,0.223]
[1764002507767,0.1912,2859.8,2859.4,0.223]
[1764002507968,0.467,2859.7,2859.4,0.223]
[1764002508537,0.1912,2859.8,2859.4,0.223]
[1764002508835,0.1912,2859.8,2859.4,0.59504487]
[1764002509237,0.6582,2859.8,2859.4,0.59504487]
[1764002509532,0.4533,2859.5,2859.4,0.223]
[1764002510768,0.2905,2859.7,2859.4,0.223]
[1764002511138,0.4517,2859.5,2859.4,0.223]
[1764002511472,0.4517,2859.5,2858.5,0.001]
[1764002511657,0.2649,2859.4,2858.5,0.224]
[1764002512473,0.2649,2859.4,2858.5,0.59645668]
[1764002512782,0.2649,2859.4,2859.1,0.001]
[1764002513279,0.4771,2859.2,2859.1,0.001]
[1764002514389,0.7441,2859.2,2859.1,0.001]
[1764002514883,0.4771,2859.2,2859.1,0.001]
[1764002515781,0.267,2859.5,2859.1,0.001]
[1764002516784,0.475,2859.2,2859.1,0.001]
[1764002518588,0.7441,2859.2,2859.1,0.001]
[1764002520597,0.7441,2859.2,2858.9,0.001]
[1764002520811,0.2793,2859.0,2858.9,0.001]
[1764002521155,0.598704,2859.8,2858.9,0.001]
[1764002521156,0.4647,2859.4,2858.9,0.001]
[1764002521385,0.4647,2859.7,2859.0,0.223]
[1764002521758,0.4647,2859.7,2859.1,0.191]
[1764002522191,0.1932,2859.8,2859.1,0.191]
[1764002522192,0.1932,2859.8,2859.1,0.6518]
[1764002522399,0.002,2859.8,2859.2,3.777646]
[1764002522560,0.002,2859.8,2859.3,0.4429446]
[1764002522766,0.002,2859.8,2859.3,0.9037446]
[1764002522988,0.002,2859.8,2859.4,0.4608]
[1764002523196,0.002,2859.8,2859.5,0.223]
[1764002523772,0.002,2859.8,2859.7,0.4544]
[1764002523975,0.002,2859.8,2859.7,0.9152]
[1764002524400,0.002,2859.8,2859.7,0.4544]
[1764002524605,0.002,2859.8,2859.5,0.223]
[1764002525063,0.002,2859.8,2859.7,0.859904]
[1764002525271,0.002,2859.8,2859.7,1.82477366]
[1764002525605,0.002,2859.8,2859.7,4.20581966]
[1764002526478,0.002,2859.8,2859.7,16.74871166]
[1764002526682,0.002,2859.8,2859.7,20.24558196]
[1764002527190,0.04683987,2861.1,2859.9,11.920886]
[1764002527388,0.51153987,2861.1,2860.2,0.4544]
[1764002527899,0.51153987,2861.1,2860.2,0.6454]
[1764002528903,0.51153987,2861.1,2860.3,3.49613676]
[1764002529506,0.51153987,2861.1,2860.3,3.95693676]
[1764002529685,0.51153987,2861.1,2860.3,0.4608]
[1764002529885,0.51153987,2861.1,2860.4,0.41480457]
[1764002530085,0.51153987,2861.1,2860.5,0.223]
[1764002531106,0.51073987,2861.1,2860.5,0.223]
[1764002531811,0.51073987,2861.1,2860.2,3.68725825]
[1764002531994,0.51073987,2861.1,2860.3,0.223]
[1764002532188,0.51273987,2861.1,2860.4,0.43710583]
[1764002533003,0.51273987,2861.1,2860.4,0.89790583]
[1764002533201,0.04803987,2861.1,2860.5,3.90139632]
[1764002533398,0.04803987,2861.1,2860.5,4.36219632]
[1764002533707,0.002,2861.1,2861.0,0.4544]
[1764002533879,0.002,2861.1,2861.0,0.223]
[1764002534081,0.002,2861.1,2860.7,0.223]
[1764002534082,0.5909,2861.1,2860.7,0.223]
[1764002534501,0.4647,2861.0,2860.7,0.223]
[1764002535207,0.002,2861.1,2860.9,0.4544]
[1764002535390,0.002,2861.1,2861.0,0.4544]
[1764002536191,0.002,2861.1,2860.8,0.4608]
[1764002536505,0.002,2861.1,2861.0,0.889204]
[1764002537007,0.002,2861.1,2861.0,0.4837]
[1764002537413,0.002,2861.1,2860.9,0.41794479]
[1764002537704,0.002,2861.1,2861.0,0.7067]
[1764002537908,0.002,2861.1,2861.0,1.112204]
[1764002538073,0.002,2861.1,2861.0,1.1763]
[1764002539206,0.002,2861.1,2861.0,0.223]
[1764002539610,0.1273,2861.1,2860.2,0.191]
[1764002539791,0.5753,2861.1,2860.3,1.40079411]
[1764002539990,0.5753,2861.1,2860.4,0.50880351]
[1764002540176,0.5753,2861.1,2860.4,0.96100351]
[1764002540177,0.002,2861.1,2860.4,0.96100351]
[1764002540380,0.002,2861.1,2860.5,5.19284]
[1764002540576,0.002,2861.1,2860.6,4.475861]
[1764002540791,0.002,2861.1,2861.0,0.4735]
[1764002540995,0.002,2861.1,2861.0,0.879004]
[1764002541916,0.002,2861.1,2861.0,0.405504]
[1764002543396,0.002,2861.1,2861.0,4.37428537]
[1764002543736,0.002,2861.1,2861.0,4.82648537]
[1764002543944,0.002,2861.1,2861.0,1.81385254]